[Event "Titled Tuesday Blitz October 11 Early 2022"]
[White "Remizov, Yaroslav"]
[Black "Malyi, Viacheslav"]
[WhiteFideId "34134015"]
[BlackFideId "14123983"]
[WhiteElo "2417"]
[BlackElo "2291"]
[Result "1-0"]
[Round "04"]
[TimeControl "180+1"]
[Date "2022.10.12"]
[WhiteClock "0:00:09"]
[BlackClock "0:00:02"]

1. e4 {[%clk 0:03:00]}  e5 {[%clk 0:02:58]} 2. Bc4 {[%clk 0:03:00]}  Nf6 {[%clk 0:02:57]} 3. Nc3 {[%clk 0:03:00]}  Nc6 {[%clk 0:02:55]} 4. d3 {[%clk 0:03:00]}  Na5 {[%clk 0:02:56]} 5. Nge2 {[%clk 0:03:00]}  Nxc4 {[%clk 0:02:56]} 6. dxc4 {[%clk 0:03:01]}  d6 {[%clk 0:02:56]} 7. O-O {[%clk 0:02:54]}  c6 {[%clk 0:02:57]} 8. Qd3 {[%clk 0:02:52]}  Be7 {[%clk 0:02:58]} 9. b3 {[%clk 0:02:52]}  Be6 {[%clk 0:02:58]} 10. f3 {[%clk 0:02:50]}  Qc7 {[%clk 0:02:54]} 11. Be3 {[%clk 0:02:49]}  O-O {[%clk 0:02:54]} 12. Rad1 {[%clk 0:02:47]}  Rfd8 {[%clk 0:02:54]} 13. g4 {[%clk 0:02:43]}  d5 {[%clk 0:02:53]} 14. cxd5 {[%clk 0:02:38]}  cxd5 {[%clk 0:02:54]} 15. exd5 {[%clk 0:02:35]}  Nxd5 {[%clk 0:02:55]} 16. Nxd5 {[%clk 0:02:31]}  Rxd5 {[%clk 0:02:56]} 17. Qe4 {[%clk 0:02:31]}  Rad8 {[%clk 0:02:49]} 18. Rc1 {[%clk 0:02:22]}  a6 {[%clk 0:02:38]} 19. Kf2 {[%clk 0:02:15]}  R5d7 {[%clk 0:02:32]} 20. c4 {[%clk 0:02:10]}  Bc5 {[%clk 0:02:25]} 21. Rc2 {[%clk 0:01:47]}  Rd3 {[%clk 0:02:21]} 22. Bxc5 {[%clk 0:01:41]}  Qxc5+ {[%clk 0:02:22]} 23. Kg2 {[%clk 0:01:38]}  b6 {[%clk 0:02:16]} 24. Rf2 {[%clk 0:01:19]}  g6 {[%clk 0:02:13]} 25. Ng3 {[%clk 0:01:18]}  a5 {[%clk 0:02:07]} 26. h4 {[%clk 0:01:17]}  R8d4 {[%clk 0:02:01]} 27. Qa8+ {[%clk 0:01:16]}  Kg7 {[%clk 0:02:00]} 28. h5 {[%clk 0:01:16]}  Rd8 {[%clk 0:01:49]} 29. Qe4 {[%clk 0:01:11]}  R8d4 {[%clk 0:01:48]} 30. Qa8 {[%clk 0:01:10]}  Rd8 {[%clk 0:01:48]} 31. Qb7 {[%clk 0:01:05]}  R8d7 {[%clk 0:01:47]} 32. Qa6 {[%clk 0:00:58]}  Rd1 {[%clk 0:01:26]} 33. Ne4 {[%clk 0:00:52]}  Qe3 {[%clk 0:01:22]} 34. Rce2 {[%clk 0:00:33]}  Qf4 {[%clk 0:01:14]} 35. Qxb6 {[%clk 0:00:26]}  R7d3 {[%clk 0:01:02]} 36. Nc5 {[%clk 0:00:18]}  Bxg4 {[%clk 0:00:46]} 37. Nxd3 {[%clk 0:00:14]}  Bh3+ {[%clk 0:00:42]} 38. Kxh3 {[%clk 0:00:14]}  Rh1+ {[%clk 0:00:42]} 39. Rh2 {[%clk 0:00:15]}  Qxf3+ {[%clk 0:00:39]} 40. Kh4 {[%clk 0:00:14]}  Qxh5+ {[%clk 0:00:15]} 41. Kg3 {[%clk 0:00:14]}  Qg5+ {[%clk 0:00:13]} 42. Kf3 {[%clk 0:00:14]}  Rf1+ {[%clk 0:00:06]} 43. Ke4 {[%clk 0:00:14]}  Qf5+ {[%clk 0:00:04]} 44. Kd5 {[%clk 0:00:14]}  Qxd3+ {[%clk 0:00:03]} 45. Kc5 {[%clk 0:00:12]}  Rf6 {[%clk 0:00:03]} 46. Qc7 {[%clk 0:00:10]}  Qd4+ {[%clk 0:00:04]} 47. Kb5 {[%clk 0:00:10]}  a4 {[%clk 0:00:03]} 48. Qxe5 {[%clk 0:00:08]}  Qb6+ {[%clk 0:00:03]} 49. Kxa4 {[%clk 0:00:08]}  Qa6+ {[%clk 0:00:03]} 50. Kb4 {[%clk 0:00:08]}  Qb6+ {[%clk 0:00:03]} 51. Kc3 {[%clk 0:00:09]}  Qa6 {[%clk 0:00:02]} 52. Rhf2 {[%clk 0:00:09]} 1-0


[Site "https://www.chess.com"]

[Event "Titled Tuesday Blitz October 11 Early 2022"]
[White "Rose, Felix"]
[Black "Navalgund, Niranjan"]
[WhiteFideId "5105722"]
[BlackFideId "5030854"]
[WhiteElo "2039"]
[BlackElo "2294"]
[Result "0-1"]
[Round "04"]
[TimeControl "180+1"]
[Date "2022.10.12"]
[WhiteClock "0:00:04"]
[BlackClock "0:01:59"]

1. e4 {[%clk 0:03:00]}  e5 {[%clk 0:02:56]} 2. Nf3 {[%clk 0:03:00]}  Nf6 {[%clk 0:02:56]} 3. Nxe5 {[%clk 0:03:00]}  d5 {[%clk 0:02:56]} 4. exd5 {[%clk 0:02:55]}  Qxd5 {[%clk 0:02:56]} 5. d4 {[%clk 0:02:50]}  Nc6 {[%clk 0:02:55]} 6. Nxc6 {[%clk 0:02:32]}  Qxc6 {[%clk 0:02:54]} 7. Nc3 {[%clk 0:02:32]}  Bb4 {[%clk 0:02:54]} 8. Bd2 {[%clk 0:02:31]}  Bg4 {[%clk 0:02:42]} 9. f3 {[%clk 0:02:26]}  O-O-O {[%clk 0:02:42]} 10. fxg4 {[%clk 0:02:19]}  Rhe8+ {[%clk 0:02:42]} 11. Kf2 {[%clk 0:02:10]}  Rxd4 {[%clk 0:02:42]} 12. Bd3 {[%clk 0:02:01]}  Nxg4+ {[%clk 0:02:41]} 13. Kf1 {[%clk 0:01:30]}  Kb8 {[%clk 0:02:17]} 14. Qf3 {[%clk 0:01:14]}  Qd7 {[%clk 0:02:13]} 15. Re1 {[%clk 0:00:48]}  Ne5 {[%clk 0:02:10]} 16. Qf5 {[%clk 0:00:25]}  Qxf5+ {[%clk 0:02:08]} 17. Bxf5 {[%clk 0:00:24]}  Rxd2 {[%clk 0:02:09]} 18. Ne4 {[%clk 0:00:04]}  Rxc2 {[%clk 0:02:09]} 19. Nd6 {[%clk 0:00:05]}  cxd6 {[%clk 0:02:09]} 20. Bxc2 {[%clk 0:00:05]}  Bxe1 {[%clk 0:02:08]} 21. Kxe1 {[%clk 0:00:05]}  Nd3+ {[%clk 0:02:07]} 22. Kd2 {[%clk 0:00:05]}  Nb4 {[%clk 0:02:06]} 23. Bb3 {[%clk 0:00:06]}  f5 {[%clk 0:02:03]} 24. a3 {[%clk 0:00:06]}  Nc6 {[%clk 0:02:02]} 25. Rf1 {[%clk 0:00:06]}  g6 {[%clk 0:02:01]} 26. Bd5 {[%clk 0:00:06]}  Nd4 {[%clk 0:02:02]} 27. Rc1 {[%clk 0:00:05]}  Re5 {[%clk 0:02:01]} 28. Bg8 {[%clk 0:00:05]}  h5 {[%clk 0:02:00]} 29. Bh7 {[%clk 0:00:04]}  Nb3+ {[%clk 0:01:59]} 0-1


[Site "https://www.chess.com"]

[Event "Titled Tuesday Blitz October 11 Early 2022"]
[White "Rustemov, Alexander"]
[Black "Andreikin, Dmitry"]
[WhiteFideId "4119002"]
[BlackFideId "4158814"]
[WhiteElo "2819"]
[BlackElo "2736"]
[Result "0-1"]
[Round "04"]
[TimeControl "180+1"]
[Date "2022.10.11"]
[WhiteClock "0:00:16"]
[BlackClock "0:01:59"]

1. d4 {[%clk 0:03:00]}  Nf6 {[%clk 0:02:58]} 2. c4 {[%clk 0:03:00]}  e6 {[%clk 0:02:59]} 3. Nf3 {[%clk 0:03:00]}  d5 {[%clk 0:02:59]} 4. Nc3 {[%clk 0:03:00]}  a6 {[%clk 0:02:58]} 5. cxd5 {[%clk 0:02:59]}  exd5 {[%clk 0:02:58]} 6. Bg5 {[%clk 0:03:00]}  Be6 {[%clk 0:02:58]} 7. e3 {[%clk 0:03:00]}  Nbd7 {[%clk 0:02:58]} 8. Bd3 {[%clk 0:02:59]}  h6 {[%clk 0:02:58]} 9. Bh4 {[%clk 0:02:50]}  Bd6 {[%clk 0:02:57]} 10. Qc2 {[%clk 0:02:46]}  O-O {[%clk 0:02:56]} 11. O-O {[%clk 0:02:45]}  Rc8 {[%clk 0:02:55]} 12. Bg3 {[%clk 0:02:42]}  Bxg3 {[%clk 0:02:54]} 13. hxg3 {[%clk 0:02:42]}  c5 {[%clk 0:02:55]} 14. dxc5 {[%clk 0:02:41]}  Nxc5 {[%clk 0:02:56]} 15. Nd4 {[%clk 0:02:39]}  Ng4 {[%clk 0:02:54]} 16. Be2 {[%clk 0:02:28]}  Qg5 {[%clk 0:02:52]} 17. Bxg4 {[%clk 0:02:19]}  Bxg4 {[%clk 0:02:51]} 18. Rac1 {[%clk 0:02:16]}  Rfe8 {[%clk 0:02:49]} 19. Qd2 {[%clk 0:02:09]}  h5 {[%clk 0:02:46]} 20. b4 {[%clk 0:02:03]}  Nd7 {[%clk 0:02:28]} 21. f4 {[%clk 0:01:55]}  Qg6 {[%clk 0:02:16]} 22. Nxd5 {[%clk 0:01:55]}  Qe4 {[%clk 0:02:15]} 23. Rxc8 {[%clk 0:01:51]}  Rxc8 {[%clk 0:02:16]} 24. Nc3 {[%clk 0:01:49]}  Qe7 {[%clk 0:02:16]} 25. a3 {[%clk 0:01:46]}  Nf6 {[%clk 0:02:16]} 26. Re1 {[%clk 0:01:39]}  Qc7 {[%clk 0:02:13]} 27. Rc1 {[%clk 0:01:37]}  Ne4 {[%clk 0:02:12]} 28. Qd3 {[%clk 0:01:02]}  Nxc3 {[%clk 0:02:11]} 29. Kh2 {[%clk 0:01:02]}  Qc4 {[%clk 0:02:04]} 30. Qc2 {[%clk 0:00:55]}  b5 {[%clk 0:02:01]} 31. Nb3 {[%clk 0:00:54]}  Ne2 {[%clk 0:01:57]} 32. Qxc4 {[%clk 0:00:19]}  bxc4 {[%clk 0:01:58]} 33. Rc2 {[%clk 0:00:17]}  cxb3 {[%clk 0:01:58]} 34. Rxc8+ {[%clk 0:00:16]}  Bxc8 {[%clk 0:01:59]} 0-1


[Site "https://www.chess.com"]

[Event "Titled Tuesday Blitz October 11 Early 2022"]
[White "Salman, Pavel"]
[Black "Onslow, Alfie"]
[WhiteFideId "24153753"]
[BlackFideId "436976"]
[WhiteElo "2187"]
[BlackElo "2015"]
[Result "1-0"]
[Round "04"]
[TimeControl "180+1"]
[Date "2022.10.12"]
[WhiteClock "0:00:10"]
[BlackClock "0:00:01"]

1. Nf3 {[%clk 0:03:00]}  c5 {[%clk 0:02:58]} 2. g3 {[%clk 0:03:00]}  Nc6 {[%clk 0:02:58]} 3. Bg2 {[%clk 0:03:01]}  e5 {[%clk 0:02:58]} 4. O-O {[%clk 0:03:02]}  Nf6 {[%clk 0:02:57]} 5. d3 {[%clk 0:03:02]}  Be7 {[%clk 0:02:58]} 6. e4 {[%clk 0:03:01]}  O-O {[%clk 0:02:58]} 7. Nc3 {[%clk 0:03:01]}  d6 {[%clk 0:02:58]} 8. Re1 {[%clk 0:03:01]}  h6 {[%clk 0:02:56]} 9. h3 {[%clk 0:03:01]}  Be6 {[%clk 0:02:56]} 10. Kh2 {[%clk 0:03:01]}  a6 {[%clk 0:02:54]} 11. Nh4 {[%clk 0:03:01]}  b5 {[%clk 0:02:50]} 12. f4 {[%clk 0:03:01]}  exf4 {[%clk 0:02:46]} 13. Bxf4 {[%clk 0:02:58]}  Nd7 {[%clk 0:02:41]} 14. Nf5 {[%clk 0:02:58]}  Nde5 {[%clk 0:02:40]} 15. Nd5 {[%clk 0:02:45]}  Bg5 {[%clk 0:02:28]} 16. Qh5 {[%clk 0:02:33]}  Nd4 {[%clk 0:01:50]} 17. Bxg5 {[%clk 0:02:11]}  Qxg5 {[%clk 0:01:43]} 18. Qxg5 {[%clk 0:01:41]}  hxg5 {[%clk 0:01:44]} 19. Nde3 {[%clk 0:01:15]}  Nef3+ {[%clk 0:01:09]} 20. Bxf3 {[%clk 0:01:08]}  Nxf3+ {[%clk 0:01:09]} 21. Kg2 {[%clk 0:01:08]}  Nxe1+ {[%clk 0:01:09]} 22. Rxe1 {[%clk 0:01:09]}  Bxf5 {[%clk 0:01:09]} 23. Nxf5 {[%clk 0:01:03]}  Rfd8 {[%clk 0:01:08]} 24. c4 {[%clk 0:00:56]}  f6 {[%clk 0:01:08]} 25. b3 {[%clk 0:00:49]}  Kf7 {[%clk 0:01:07]} 26. g4 {[%clk 0:00:48]}  b4 {[%clk 0:00:55]} 27. a4 {[%clk 0:00:19]}  bxa3 {[%clk 0:00:52]} 28. Ra1 {[%clk 0:00:20]}  a5 {[%clk 0:00:43]} 29. Rxa3 {[%clk 0:00:20]}  g6 {[%clk 0:00:40]} 30. Ne3 {[%clk 0:00:20]}  Rdb8 {[%clk 0:00:38]} 31. Nd5 {[%clk 0:00:20]}  Rb7 {[%clk 0:00:28]} 32. Kf3 {[%clk 0:00:20]}  Ra6 {[%clk 0:00:22]} 33. Ke3 {[%clk 0:00:20]}  Ke6 {[%clk 0:00:13]} 34. Kd2 {[%clk 0:00:20]}  Ra8 {[%clk 0:00:11]} 35. Kc3 {[%clk 0:00:20]}  Rba7 {[%clk 0:00:09]} 36. Ra1 {[%clk 0:00:19]}  Rh8 {[%clk 0:00:09]} 37. Rf1 {[%clk 0:00:19]}  a4 {[%clk 0:00:09]} 38. Rxf6+ {[%clk 0:00:19]}  Ke5 {[%clk 0:00:09]} 39. Rxg6 {[%clk 0:00:13]}  a3 {[%clk 0:00:07]} 40. Rxg5+ {[%clk 0:00:13]}  Ke6 {[%clk 0:00:07]} 41. Rg6+ {[%clk 0:00:13]}  Kf7 {[%clk 0:00:07]} 42. Rf6+ {[%clk 0:00:14]}  Kg7 {[%clk 0:00:07]} 43. Rf1 {[%clk 0:00:14]}  a2 {[%clk 0:00:07]} 44. Ra1 {[%clk 0:00:14]}  Rxh3 {[%clk 0:00:08]} 45. g5 {[%clk 0:00:13]}  Rh2 {[%clk 0:00:06]} 46. d4 {[%clk 0:00:11]}  Rh3+ {[%clk 0:00:06]} 47. Kb2 {[%clk 0:00:11]}  cxd4 {[%clk 0:00:06]} 48. Nf4 {[%clk 0:00:11]}  Rh2+ {[%clk 0:00:06]} 49. Kc1 {[%clk 0:00:10]}  Rh1+ {[%clk 0:00:06]} 50. Kb2 {[%clk 0:00:11]}  Rh2+ {[%clk 0:00:05]} 51. Kc1 {[%clk 0:00:11]}  Rf2 {[%clk 0:00:06]} 52. Nd3 {[%clk 0:00:11]}  Rf1+ {[%clk 0:00:05]} 53. Kb2 {[%clk 0:00:11]}  Rxa1 {[%clk 0:00:05]} 54. Kxa1 {[%clk 0:00:12]}  Kg6 {[%clk 0:00:05]} 55. e5 {[%clk 0:00:08]}  dxe5 {[%clk 0:00:04]} 56. Nxe5+ {[%clk 0:00:09]}  Kxg5 {[%clk 0:00:05]} 57. Nc6 {[%clk 0:00:09]}  d3 {[%clk 0:00:03]} 58. Nxa7 {[%clk 0:00:08]}  d2 {[%clk 0:00:03]} 59. Kxa2 {[%clk 0:00:09]}  d1=Q {[%clk 0:00:03]} 60. Nb5 {[%clk 0:00:10]}  Qe2+ {[%clk 0:00:04]} 61. Ka3 {[%clk 0:00:10]}  Qd1 {[%clk 0:00:04]} 62. Kb4 {[%clk 0:00:11]}  Qa1 {[%clk 0:00:04]} 63. c5 {[%clk 0:00:11]}  Kf6 {[%clk 0:00:04]} 64. Nd6 {[%clk 0:00:10]}  Ke6 {[%clk 0:00:05]} 65. Kb5 {[%clk 0:00:11]}  Kd5 {[%clk 0:00:05]} 66. b4 {[%clk 0:00:11]}  Qf1+ {[%clk 0:00:04]} 67. Kb6 {[%clk 0:00:11]}  Qb1 {[%clk 0:00:04]} 68. b5 {[%clk 0:00:11]}  Qc2 {[%clk 0:00:04]} 69. Nb7 {[%clk 0:00:11]}  Qd3 {[%clk 0:00:03]} 70. c6 {[%clk 0:00:11]}  Qg6 {[%clk 0:00:02]} 71. Kc7 {[%clk 0:00:10]}  Qf7+ {[%clk 0:00:02]} 72. Kb8 {[%clk 0:00:10]}  Qe8+ {[%clk 0:00:02]} 73. Ka7 {[%clk 0:00:11]}  Qc8 {[%clk 0:00:01]} 74. Kb6 {[%clk 0:00:10]} 1-0


[Site "https://www.chess.com"]

[Event "Titled Tuesday Blitz October 11 Early 2022"]
[White "Samant Aditya S"]
[Black "Boraso, Alessio"]
[WhiteFideId "35080580"]
[BlackFideId "848077"]
[WhiteElo "2367"]
[BlackElo "2286"]
[Result "1-0"]
[Round "04"]
[TimeControl "180+1"]
[Date "2022.10.12"]
[WhiteClock "0:00:05"]
[BlackClock "0:00:01"]

1. e4 {[%clk 0:03:00]}  c5 {[%clk 0:02:58]} 2. Nf3 {[%clk 0:02:58]}  e6 {[%clk 0:02:59]} 3. d4 {[%clk 0:02:55]}  cxd4 {[%clk 0:03:00]} 4. Nxd4 {[%clk 0:02:56]}  Nc6 {[%clk 0:03:00]} 5. Nc3 {[%clk 0:02:55]}  Nf6 {[%clk 0:02:59]} 6. Ndb5 {[%clk 0:02:53]}  Bc5 {[%clk 0:02:56]} 7. Nd6+ {[%clk 0:02:50]}  Ke7 {[%clk 0:02:56]} 8. Bf4 {[%clk 0:02:50]}  e5 {[%clk 0:02:53]} 9. Nf5+ {[%clk 0:02:51]}  Kf8 {[%clk 0:02:53]} 10. Bg5 {[%clk 0:02:50]}  d6 {[%clk 0:02:51]} 11. Ne3 {[%clk 0:02:51]}  Be6 {[%clk 0:02:40]} 12. Bd3 {[%clk 0:02:45]}  h6 {[%clk 0:02:37]} 13. Bxf6 {[%clk 0:02:42]}  Qxf6 {[%clk 0:02:36]} 14. Ncd5 {[%clk 0:02:43]}  Qd8 {[%clk 0:02:35]} 15. O-O {[%clk 0:02:39]}  Ne7 {[%clk 0:02:33]} 16. Bc4 {[%clk 0:02:27]}  Rc8 {[%clk 0:02:33]} 17. Bb3 {[%clk 0:02:19]}  h5 {[%clk 0:02:14]} 18. Kh1 {[%clk 0:02:16]}  h4 {[%clk 0:02:09]} 19. f4 {[%clk 0:01:45]}  exf4 {[%clk 0:01:51]} 20. Rxf4 {[%clk 0:01:44]}  Ng6 {[%clk 0:01:51]} 21. Rf1 {[%clk 0:01:38]}  Qg5 {[%clk 0:01:47]} 22. Nf5 {[%clk 0:01:28]}  Ne5 {[%clk 0:01:09]} 23. Nf4 {[%clk 0:01:04]}  Bxf5 {[%clk 0:01:01]} 24. exf5 {[%clk 0:01:03]}  Ng4 {[%clk 0:01:00]} 25. Qd5 {[%clk 0:00:53]}  Rc7 {[%clk 0:00:51]} 26. Ne6+ {[%clk 0:00:39]}  fxe6 {[%clk 0:00:46]} 27. fxe6+ {[%clk 0:00:40]}  Qf6 {[%clk 0:00:38]} 28. Rxf6+ {[%clk 0:00:40]}  Nxf6 {[%clk 0:00:39]} 29. Qf5 {[%clk 0:00:36]}  Ke8 {[%clk 0:00:35]} 30. Qg6+ {[%clk 0:00:34]}  Kf8 {[%clk 0:00:30]} 31. Rf1 {[%clk 0:00:35]}  Bd4 {[%clk 0:00:23]} 32. c3 {[%clk 0:00:31]}  Be5 {[%clk 0:00:23]} 33. Qd3 {[%clk 0:00:26]}  Ke7 {[%clk 0:00:15]} 34. Qg6 {[%clk 0:00:24]}  Kf8 {[%clk 0:00:15]} 35. Re1 {[%clk 0:00:25]}  Rh6 {[%clk 0:00:14]} 36. Qd3 {[%clk 0:00:24]}  Ke7 {[%clk 0:00:13]} 37. Qe3 {[%clk 0:00:25]}  Rg6 {[%clk 0:00:11]} 38. Qxa7 {[%clk 0:00:18]}  Ng4 {[%clk 0:00:09]} 39. h3 {[%clk 0:00:16]}  Nh6 {[%clk 0:00:10]} 40. Rf1 {[%clk 0:00:15]}  Rg5 {[%clk 0:00:08]} 41. Qb8 {[%clk 0:00:15]}  d5 {[%clk 0:00:06]} 42. Qf8+ {[%clk 0:00:14]}  Kxe6 {[%clk 0:00:07]} 43. Rd1 {[%clk 0:00:09]}  Bd6 {[%clk 0:00:04]} 44. Qf3 {[%clk 0:00:08]}  Re5 {[%clk 0:00:03]} 45. Bxd5+ {[%clk 0:00:06]}  Ke7 {[%clk 0:00:04]} 46. Be4 {[%clk 0:00:07]}  Nf7 {[%clk 0:00:04]} 47. Rf1 {[%clk 0:00:06]}  Ng5 {[%clk 0:00:04]} 48. Qf8+ {[%clk 0:00:07]}  Kd7 {[%clk 0:00:04]} 49. Qxg7+ {[%clk 0:00:06]}  Kd8 {[%clk 0:00:01]} 50. Qh8+ {[%clk 0:00:06]}  Kd7 {[%clk 0:00:01]} 51. Qg7+ {[%clk 0:00:06]}  Kd8 {[%clk 0:00:02]} 52. Qg8+ {[%clk 0:00:06]}  Kd7 {[%clk 0:00:02]} 53. Bf5+ {[%clk 0:00:07]}  Kc6 {[%clk 0:00:02]} 54. Qc4+ {[%clk 0:00:06]}  Kb6 {[%clk 0:00:02]} 55. Qb3+ {[%clk 0:00:07]}  Rb5 {[%clk 0:00:02]} 56. Qc2 {[%clk 0:00:06]}  Rf7 {[%clk 0:00:02]} 57. Bd3 {[%clk 0:00:06]}  Rxf1+ {[%clk 0:00:02]} 58. Bxf1 {[%clk 0:00:07]}  Re5 {[%clk 0:00:02]} 59. Qf2+ {[%clk 0:00:07]}  Kc7 {[%clk 0:00:02]} 60. a4 {[%clk 0:00:05]}  Ne4 {[%clk 0:00:02]} 61. Qf7+ {[%clk 0:00:05]}  Re7 {[%clk 0:00:01]} 62. Qf3 {[%clk 0:00:04]}  Ng3+ {[%clk 0:00:01]} 63. Kg1 {[%clk 0:00:05]}  Bc5+ {[%clk 0:00:01]} 64. Kh2 {[%clk 0:00:05]} 1-0


[Site "https://www.chess.com"]

[Event "Titled Tuesday Blitz October 11 Early 2022"]
[White "Saucey, Michel"]
[Black "Gilmanov, Mansur"]
[WhiteFideId "601845"]
[BlackFideId "4166868"]
[WhiteElo "2253"]
[BlackElo "2377"]
[Result "1-0"]
[Round "04"]
[TimeControl "180+1"]
[Date "2022.10.12"]
[WhiteClock "0:01:13"]
[BlackClock "0:00:13"]

1. d4 {[%clk 0:03:00]}  f5 {[%clk 0:02:55]} 2. g3 {[%clk 0:02:59]}  e6 {[%clk 0:02:56]} 3. Bg2 {[%clk 0:02:59]}  c6 {[%clk 0:02:56]} 4. Nf3 {[%clk 0:03:00]}  d5 {[%clk 0:02:57]} 5. O-O {[%clk 0:03:00]}  Nf6 {[%clk 0:02:57]} 6. c4 {[%clk 0:03:00]}  Bd6 {[%clk 0:02:57]} 7. b3 {[%clk 0:02:58]}  Qe7 {[%clk 0:02:56]} 8. a4 {[%clk 0:02:58]}  O-O {[%clk 0:02:56]} 9. Ba3 {[%clk 0:02:58]}  b6 {[%clk 0:02:53]} 10. Bxd6 {[%clk 0:02:58]}  Qxd6 {[%clk 0:02:54]} 11. Nbd2 {[%clk 0:02:58]}  a5 {[%clk 0:02:54]} 12. e3 {[%clk 0:02:57]}  Na6 {[%clk 0:02:53]} 13. Qe2 {[%clk 0:02:57]}  Nb4 {[%clk 0:02:53]} 14. Rfc1 {[%clk 0:02:56]}  Ba6 {[%clk 0:02:53]} 15. Ne5 {[%clk 0:02:54]}  Rac8 {[%clk 0:02:47]} 16. Nd3 {[%clk 0:02:49]}  Ne4 {[%clk 0:02:42]} 17. Nxe4 {[%clk 0:02:44]}  fxe4 {[%clk 0:02:37]} 18. Nxb4 {[%clk 0:02:44]}  Qxb4 {[%clk 0:02:37]} 19. Bh3 {[%clk 0:02:37]}  Rf6 {[%clk 0:02:27]} 20. Qd1 {[%clk 0:02:19]}  Rcf8 {[%clk 0:02:26]} 21. cxd5 {[%clk 0:02:11]}  Rxf2 {[%clk 0:02:18]} 22. dxe6 {[%clk 0:01:54]}  Qd6 {[%clk 0:00:57]} 23. Qg4 {[%clk 0:01:39]}  Be2 {[%clk 0:00:42]} 24. Qxe4 {[%clk 0:01:35]}  Bf3 {[%clk 0:00:27]} 25. Qe5 {[%clk 0:01:25]}  Qb4 {[%clk 0:00:22]} 26. e7 {[%clk 0:01:19]}  Re8 {[%clk 0:00:16]} 27. Kxf2 {[%clk 0:01:13]}  Qxa4 {[%clk 0:00:13]} 1-0


[Site "https://www.chess.com"]

[Event "Titled Tuesday Blitz October 11 Early 2022"]
[White "Shandrygin, Nikita"]
[Black "Pappelis, Dimitrios"]
[WhiteFideId "24198668"]
[BlackFideId "4215281"]
[WhiteElo "2323"]
[BlackElo "2104"]
[Result "1-0"]
[Round "04"]
[TimeControl "180+1"]
[Date "2022.10.12"]
[WhiteClock "0:00:19"]
[BlackClock "0:00:36"]

1. e4 {[%clk 0:03:00]}  c5 {[%clk 0:02:46]} 2. Nf3 {[%clk 0:02:59]}  Nc6 {[%clk 0:02:44]} 3. d4 {[%clk 0:02:59]}  cxd4 {[%clk 0:02:45]} 4. Nxd4 {[%clk 0:03:00]}  Nf6 {[%clk 0:02:46]} 5. Nc3 {[%clk 0:03:01]}  e5 {[%clk 0:02:45]} 6. Ndb5 {[%clk 0:03:01]}  d6 {[%clk 0:02:45]} 7. Bg5 {[%clk 0:03:01]}  a6 {[%clk 0:02:46]} 8. Na3 {[%clk 0:03:02]}  Be6 {[%clk 0:02:47]} 9. Nd5 {[%clk 0:02:54]}  Bxd5 {[%clk 0:02:37]} 10. exd5 {[%clk 0:02:19]}  Qa5+ {[%clk 0:02:35]} 11. c3 {[%clk 0:02:17]}  Qxd5 {[%clk 0:02:30]} 12. Bxf6 {[%clk 0:02:17]}  Qxd1+ {[%clk 0:02:31]} 13. Rxd1 {[%clk 0:02:17]}  gxf6 {[%clk 0:02:32]} 14. Nc4 {[%clk 0:02:17]}  Rd8 {[%clk 0:02:27]} 15. Ne3 {[%clk 0:02:15]}  Be7 {[%clk 0:02:23]} 16. Nd5 {[%clk 0:02:08]}  f5 {[%clk 0:02:16]} 17. Bd3 {[%clk 0:01:51]}  e4 {[%clk 0:02:16]} 18. Be2 {[%clk 0:01:52]}  Rg8 {[%clk 0:02:12]} 19. g3 {[%clk 0:01:52]}  Ne5 {[%clk 0:02:12]} 20. Ne3 {[%clk 0:01:50]}  f4 {[%clk 0:02:02]} 21. gxf4 {[%clk 0:01:51]}  Nf3+ {[%clk 0:01:57]} 22. Bxf3 {[%clk 0:01:50]}  exf3 {[%clk 0:01:57]} 23. Kd2 {[%clk 0:01:51]}  Bh4 {[%clk 0:01:52]} 24. Rdf1 {[%clk 0:00:57]}  Kd7 {[%clk 0:01:49]} 25. Nf5 {[%clk 0:00:57]}  Bf6 {[%clk 0:01:46]} 26. Ke3 {[%clk 0:00:53]}  Ke6 {[%clk 0:01:36]} 27. Ng3 {[%clk 0:00:52]}  d5 {[%clk 0:01:22]} 28. Kxf3 {[%clk 0:00:50]}  d4 {[%clk 0:01:22]} 29. Re1+ {[%clk 0:00:48]}  Kd5 {[%clk 0:01:20]} 30. Ne4 {[%clk 0:00:39]}  Bh8 {[%clk 0:01:13]} 31. Rd1 {[%clk 0:00:32]}  f5 {[%clk 0:01:02]} 32. Ng5 {[%clk 0:00:21]}  Bf6 {[%clk 0:00:43]} 33. Nxh7 {[%clk 0:00:19]}  Bg7 {[%clk 0:00:38]} 34. cxd4 {[%clk 0:00:19]}  Bxd4 {[%clk 0:00:36]} 35. Nf6+ {[%clk 0:00:19]} 1-0


[Site "https://www.chess.com"]

[Event "Titled Tuesday Blitz October 11 Early 2022"]
[White "Silva, Pedro Gil Ferreira Da"]
[Black "Winkels, Marcel"]
[WhiteFideId "1946102"]
[BlackFideId "1003887"]
[WhiteElo "2170"]
[BlackElo "1900"]
[Result "1-0"]
[Round "04"]
[TimeControl "180+1"]
[Date "2022.10.12"]
[WhiteClock "0:01:14"]
[BlackClock "0:00:32"]

1. Nf3 {[%clk 0:03:00]}  Nf6 {[%clk 0:02:58]} 2. c4 {[%clk 0:03:01]}  g6 {[%clk 0:02:58]} 3. g3 {[%clk 0:03:01]}  c6 {[%clk 0:02:55]} 4. Bg2 {[%clk 0:03:00]}  d5 {[%clk 0:02:56]} 5. O-O {[%clk 0:02:59]}  Bg7 {[%clk 0:02:55]} 6. cxd5 {[%clk 0:02:59]}  cxd5 {[%clk 0:02:54]} 7. d4 {[%clk 0:03:00]}  O-O {[%clk 0:02:52]} 8. Nc3 {[%clk 0:03:01]}  Ne4 {[%clk 0:02:51]} 9. Ne5 {[%clk 0:02:58]}  Bf5 {[%clk 0:02:48]} 10. Qb3 {[%clk 0:02:50]}  Nxc3 {[%clk 0:02:40]} 11. bxc3 {[%clk 0:02:49]}  Nc6 {[%clk 0:02:39]} 12. Bf4 {[%clk 0:02:37]}  Nxe5 {[%clk 0:02:36]} 13. Bxe5 {[%clk 0:02:36]}  Bxe5 {[%clk 0:02:14]} 14. dxe5 {[%clk 0:02:37]}  e6 {[%clk 0:02:14]} 15. Qxb7 {[%clk 0:02:27]}  Rc8 {[%clk 0:02:09]} 16. Qxa7 {[%clk 0:02:25]}  Rxc3 {[%clk 0:02:08]} 17. Qd4 {[%clk 0:02:20]}  Qc7 {[%clk 0:02:04]} 18. h4 {[%clk 0:02:14]}  h5 {[%clk 0:02:01]} 19. a4 {[%clk 0:02:11]}  Ra8 {[%clk 0:01:56]} 20. Qf4 {[%clk 0:01:54]}  Rc4 {[%clk 0:01:53]} 21. Qe3 {[%clk 0:01:49]}  Rcxa4 {[%clk 0:01:48]} 22. Rxa4 {[%clk 0:01:50]}  Rxa4 {[%clk 0:01:46]} 23. Rc1 {[%clk 0:01:50]}  Rc4 {[%clk 0:01:45]} 24. Ra1 {[%clk 0:01:49]}  Kg7 {[%clk 0:01:35]} 25. Ra7 {[%clk 0:01:41]}  Qd8 {[%clk 0:01:26]} 26. Qb3 {[%clk 0:01:30]}  Rc1+ {[%clk 0:01:16]} 27. Kh2 {[%clk 0:01:30]}  g5 {[%clk 0:00:52]} 28. Qe3 {[%clk 0:01:21]}  Rc2 {[%clk 0:00:46]} 29. hxg5 {[%clk 0:01:18]}  d4 {[%clk 0:00:46]} 30. Qf4 {[%clk 0:01:17]}  d3 {[%clk 0:00:40]} 31. exd3 {[%clk 0:01:16]}  Qxd3 {[%clk 0:00:36]} 32. g6 {[%clk 0:01:14]}  Bxg6 {[%clk 0:00:34]} 33. Qf6+ {[%clk 0:01:13]}  Kh7 {[%clk 0:00:32]} 34. Ra8 {[%clk 0:01:14]} 1-0


[Site "https://www.chess.com"]